Cogmind - Beta 16.1 @@@ ROGUE MODE // 2026.02.20 @ 17:18:54 Player: RD Result: Destroyed by B0-DZD(R) with Subdweller Laser Performance ------------- Evolutions (0) 0 Regions Visited (2) 400 Robots Destroyed (22) 110 Value Destroyed (382) 382 Prototype IDs (2) 40 Alien Tech Used (0) 0 Bonus (0) 0 TOTAL SCORE: 932 Bonus ------- None Cogmind --------- Core Integrity 0/250 Matter 105/300 Energy 99/100 System Corruption 0% Temperature Cool (6) Movement Treading (160) Location -10/Subcaves Parts ------- > --- POWER (1) -------- (None) > --- PROPULSION (2) --- Light Treads > --- UTILITY (2) ------ Medium Storage Unit > --- WEAPON (2) ------- (None) > --- INVENTORY (10) --- Light Treads Medium Storage Unit Large Storage Unit Seismic Detector Medium Laser Assault Rifle Light Assault Rifle Peak State ------------ > --- POWER ------------ Ion Engine > --- PROPULSION ------- Light Treads Light Treads > --- UTILITY ---------- Medium Storage Unit Improved Terrain Scanner > --- WEAPON ----------- Medium Laser Light Assault Rifle > --- INVENTORY -------- Ion Engine Medium Storage Unit Large Storage Unit Terrain Scanner Seismic Detector Small Laser [Rating: 9] Favorites ----------- Power Ion Engine Engine Ion Engine Propulsion Light Treads Treads Light Treads Utility Medium Storage Unit Device Seismic Detector Storage Medium Storage Unit Protection Light Armor Plating Weapon Medium Laser Energy Gun Medium Laser Ballistic Gun Assault Rifle Launcher Grenade Launcher Build | -11 -10 -10 ------- Run | Yrd Mat Sub Slots Evolved . | . . . Power . | . . . Propulsion . | . . . Utility . | . . . Weapon . | . . . Parts Attached 21 | 7 10 4 Power 3 | 1 2 . Engine 3 | 1 2 . Core . | . . . Reactor . | . . . Propulsion 5 | 2 2 1 Treads 5 | 2 2 1 Leg . | . . . Wheel . | . . . Hover . | . . . Flight . | . . . Utility 5 | 2 2 1 Device 2 | 1 1 . Storage 2 | 1 1 . Processor . | . . . Hackware . | . . . Protection 1 | . . 1 Artifact . | . . . Weapon 8 | 2 4 2 Energy Gun 2 | 2 . . Energy Cannon . | . . . Ballistic Gun 5 | . 3 2 Ballistic Cannon . | . . . Launcher 1 | . 1 . Special Weapon . | . . . Impact Weapon . | . . . Slashing Weapon . | . . . Piercing Weapon . | . . . Special Melee Weapon . | . . . Unidentified Prototypes . | . . . Parts Lost 8 | . 2 6 Power 2 | . 1 1 Propulsion 2 | . . 2 Utility 1 | . . 1 Weapon 3 | . 1 2 Highest Loss Streak 6 | . 1 6 To Critical Strikes . | . . . Average Backups 8 | 2 8 8 Power . | . . . Propulsion 2 | . 2 2 Utility 3 | . 3 3 Weapon 2 | . 2 3 Tool/Special . | . . . Unused Backups 4 | . 1 3 Power . | . . . Propulsion . | . . . Utility 4 | . 1 3 Weapon . | . . . Tool/Special . | . . . Average Slot Usage (%) 97 | . 97 97 Engine 12 | . 12 12 Treads 27 | . 27 27 Device 13 | . 13 12 Storage 14 | . 14 14 Energy Gun 10 | . 10 11 Ballistic Gun 14 | . 13 16 Launcher 2 | . 2 . Peak Build Rating 9 | 7 9 8 Average Rating 7 | 5 7 7 On Entrance 4 | . 7 7 Avg Prop Armor Cover (%) . | . . . Naked Turns . | . . . Heaviest Build 20 | 14 20 20 Greatest Support 40 | 40 40 40 Greatest Overweight (x) 4 | 1 4 . Average Overweight (x) . | . . . Largest Inventory Capacity 10 | 8 10 10 Average Capacity 9 | 7 9 10 Most Carried 10 | 5 10 10 Average Carried 8 | 2 9 9 Final Capacity 10 | 8 10 10 Final Carried 9 | 3 9 7 Class Distribution -------------------- 100% | Mutant Dominant Class ---------------- Mutant | -10/Materials Mutant | -10/Subcaves Resources | -11 -10 -10 ----------- Run | Yrd Mat Sub Matter Collected 549 | 261 288 . Remotely . | . . . Salvage Created 479 | 124 355 . Parts 47 | 14 33 . Haulers Intercepted 1 | . 1 . Recyclers Shooed 1 | 1 . . Parts Field Recycled . | . . . Retrieved Matter . | . . . Parts Self-Destructed . | . . . Prevented . | . . . Parts Restored . | . . . Kills | -11 -10 -10 ------- Run | Yrd Mat Sub Combat Hostiles Destroyed 10 | . 10 . Guns 6 | . 6 . AOE 4 | . 4 . Classes Destroyed 8 | 3 5 . Worker 2 | 1 1 . Builder 3 | . 3 . Tunneler 3 | 2 1 . Hauler 1 | . 1 . Recycler 1 | 1 . . Watcher 2 | . 2 . Swarmer 3 | . 3 . Grunt 7 | . 7 . Best Kill Streak 10 | 2 10 . Combat Bots Only 4 | . 4 . Max Kills in Single Turn 2 | 2 2 . Gunslinging . | . . . Exploded 1 | . 1 . Melee . | . . . Uniques/NPCs Destroyed . | . . . Combat | -11 -10 -10 -------- Run | Yrd Mat Sub Hostile Shots Fired 115 | . 51 64 Missed 36 | . 17 19 Hits 79 | . 34 45 Projectile 79 | . 34 45 Damage Taken 1570 | . 512 1058 Core 263 | . 50 213 Absorbed by Shields . | . . . Core Remaining (%) 100 | 100 . . Volleys Fired 71 | 7 45 19 Largest 2 | 2 2 2 Hottest 90 | 90 70 40 Shots Fired 131 | 14 80 37 Gun 119 | 14 68 37 Cannon . | . . . Launcher 12 | . 12 . Special . | . . . Kinetic 82 | . 45 37 Thermal 37 | 14 23 . Explosive 12 | . 12 . Electromagnetic . | . . . Robot Hit Streak 35 | 3 8 35 Robot Miss Streak 3 | 2 3 3 Penetration Max . | . . . Secondary Targets 2 | . 2 . Max Gunslinging Chain 1 | . 1 . Shots Hit Robots 93 | 9 49 35 Core Hits 40 | 5 30 5 Critical Kills . | . . . Critical Parts Destroyed . | . . . Critical Strikes 2 | . 2 . Burn 2 | . 2 . Melee Attacks . | . . . Impact . | . . . Slashing . | . . . Piercing . | . . . Sneak Attacks . | . . . Combat Hostiles . | . . . Follow-up Attacks . | . . . Damage Inflicted 1508 | 128 1117 263 Guns 792 | 128 401 263 Cannons . | . . . Explosions 714 | . 714 . Melee . | . . . Ramming 2 | . 2 . Kinetic 499 | . 236 263 Thermal 293 | 128 165 . Explosive 714 | . 714 . Electromagnetic . | . . . Impact . | . . . Slashing . | . . . Piercing . | . . . Highest Corruption . | . . . Average Corruption . | . . . Corruption Purged . | . . . Corruption Blocked . | . . . Overload Shots . | . . . Overflow Damage 30 | . 30 . Projectiles . | . . . Explosions 30 | . 30 . Melee . | . . . Knockbacks . | . . . Impact . | . . . Kinetic . | . . . Secondary . | . . . Self-Inflicted Damage 68 | . 68 . Shots 3 | . 3 . Rammed . | . . . Targets Rammed 1 | . 1 . Kicked . | . . . Crushed 1 | . 1 . Highest Temperature 157 | 45 157 . Average Temperature 44 | 18 52 . Received Heat Transfer 297 | . 198 99 Siege Activations . | . . . Martial Activations . | . . . Shielding Activations . | . . . Robots Disrupted . | . . . Combat Hostiles . | . . . Robots Corrupted . | . . . Combat Hostiles . | . . . Parts Fried . | . . . Impact Corruptions . | . . . Robots Melted . | . . . Combat Hostiles . | . . . Parts Melted . | . . . Heat Transferred 952 | 323 629 . Parts Sabotaged . | . . . Parts Stolen . | . . . Parts Stripped . | . . . Power Chain Reactions . | . . . Alert | -11 -10 -10 ------- Run | Yrd Mat Sub Maximum Alert Level . | . . . Low Security (%) 100 | 100 100 . Level 1 . | . . . Level 2 . | . . . Level 3 . | . . . Level 4 . | . . . Level 5 . | . . . High Security . | . . . Max Security . | . . . Peak Influence 170 | 10 170 . Initial . | . . . Average 42 | . 47 . Influence Increases 406 | 20 386 . Destroy 0b10 Robot/C 200 | . 200 . Destroy 0b10 Robot/NC 60 | 20 40 . Destroy Leader 46 | . 46 . Successful Hack 19 | . 19 . Disable Machine 15 | . 15 . Destroy Structure 51 | . 51 . Lose Combat Pursuer 15 | . 15 . Influence Decreases 406 | 20 337 49 Entered New Map 25 | . . 25 Time Decay 361 | 20 317 24 Lost Part 20 | . 20 . Squads Dispatched 1 | . 1 . Investigation . | . . . Extermination . | . . . Reinforcement 1 | . 1 . Assault . | . . . Garrison . | . . . Intercept . | . . . Searches Triggered . | . . . Construction Impeded . | . . . Haulers Reinforced . | . . . Active Scanning Responses . | . . . Cargo Convoy Interrupts . | . . . Stealth | -11 -10 -10 --------- Run | Yrd Mat Sub Distress Signals 1 | . 1 . Communications Jammed . | . . . Distress Signals . | . . . Times Spotted 28 | . 17 11 Peak Tracking Total 10 | . 4 10 Tactical Retreats 1 | . 1 . Traps | -11 -10 -10 ------- Run | Yrd Mat Sub Traps Triggered 7 | . 6 1 Indirectly . | . . . Trap Hack Attempts . | . . . Triggered . | . . . Disarmed . | . . . Reprogrammed . | . . . Reused . | . . . Traps Extracted . | . . . Installed . | . . . Triggered . | . . . Machines | -11 -10 -10 ---------- Run | Yrd Mat Sub Machines Disabled 1 | . 1 . Max in Single Turn 1 | . 1 . Machines Repaired . | . . . Machines Dismantled . | . . . Machines Sabotaged . | . . . Overloaded Fab Kills . | . . . Hacking | -11 -10 -10 --------- Run | Yrd Mat Sub Machines Accessed 4 | . 4 . Terminals 4 | . 4 . Fabricators . | . . . Repair Stations . | . . . Recycling Units . | . . . Scanalyzers . | . . . Garrison Access . | . . . Total Hacks 15 | . 15 . Successful 7 | . 7 . Failed 8 | . 8 . Catastrophic . | . . . Database Lockouts . | . . . Manual . | . . . Terminals 15 | . 15 . Fabricators . | . . . Repair Stations . | . . . Recycling Units . | . . . Scanalyzers . | . . . Garrison Access . | . . . Terminal Hacks 7 | . 7 . Record 1 | . 1 . Robot Analysis 2 | . 2 . Prototype ID Bank 1 | . 1 . Emergency Access Points 1 | . 1 . Dispatch Records 1 | . 1 . Zone Layout 1 | . 1 . Fabricator Hacks . | . . . Repair Station Hacks . | . . . Recycling Unit Hacks . | . . . Scanalyzer . | . . . Garrison Access Hacks . | . . . Unauthorized Hacks . | . . . Terminals . | . . . Fabricators . | . . . Repair Stations . | . . . Recycling Units . | . . . Scanalyzers . | . . . Garrison Access . | . . . Data Cores Recovered . | . . . Used . | . . . Hacking Detections 4 | . 4 . Full Trace Events 4 | . 4 . Feedback Events . | . . . Feedback Blocked . | . . . Robot Schematics Acquired . | . . . Robots Built . | . . . Authchips . | . . . Time . | . . . Total Robot Build Rating . | . . . Part Schematics Acquired . | . . . Parts Built . | . . . Authchips . | . . . Time . | . . . Total Part Build Rating . | . . . Part Studies Acquired . | . . . Parts Repaired . | . . . Time . | . . . Parts Recycled . | . . . Recycled Matter . | . . . Retrieved Matter . | . . . Retrieved Components . | . . . Parts Scanalyzed . | . . . Part Schematics Acquired . | . . . Parts Damaged . | . . . Bothacking | -11 -10 -10 ------------ Run | Yrd Mat Sub Used RIF Installer . | . . . Robots Hacked . | . . . Non-combat . | . . . Combat . | . . . Robot Hacks Applied . | . . . Relay Couplers Released . | . . . Fabnet Peak Effective % . | . . . Robots Rewired . | . . . Allies Hacked . | . . . Hacks Repelled . | . . . Allies | -11 -10 -10 -------- Run | Yrd Mat Sub Total Allies . | . . . Largest Group . | . . . Highest-Rated Group . | . . . Highest-Rated Ally . | . . . Total Orders . | . . . Ally Attacks . | . . . Total Damage . | . . . Kills . | . . . Allies Corrupted . | . . . Allies Melted . | . . . Intel | -11 -10 -10 ------- Run | Yrd Mat Sub Active Infowar (turns) 1444 | 38 1119 287 Terrain 181 | . 181 . Seismic 1263 | 38 938 287 Robot Analysis Total 2 | . 2 . Derelict Logs Recovered . | . . . Drone Launches . | . . . Drone Recoveries . | . . . Exploration | -11 -10 -10 ------------- Run | Yrd Mat Sub Turns Passed 1577 | 130 1129 318 Spaces Moved 764 | 67 566 131 Core 14 | 12 2 . Treads 750 | 55 564 131 Legs . | . . . Wheels . | . . . Hover . | . . . Flight . | . . . Fastest Speed 50 | 50 160 160 Average Speed 158 | 141 160 160 Slowest Speed 250 | 160 250 160 Overloaded Moves . | . . . Propulsion Burnouts . | . . . Robots Hopped . | . . . Potential Cave-ins . | . . . Cave-ins Triggered . | . . . Exploration Rate (%) 30 | 4 78 8 Regions Visited 2 Branch Regions 1 Pre-discovered Areas . | . . . Known Exits Taken . | . . . Unknown Exits Taken 2 | 1 1 . Scrap Searched . | . . . Spaces Dug . | . . . Terrain Destroyed 60 | . 60 . Melee . | . . . Projectile . | . . . AOE 60 | . 60 . Terrain Rammed . | . . . Walls Destroyed . | . . . Machines Disabled . | . . . Actions | -11 -10 -10 --------- Run | Yrd Mat Sub Total 1007 | 88 708 211 Wait 103 | . 52 51 Move 762 | 66 565 131 Hop . | . . . Pick Up 24 | 8 14 2 Fast Attach 14 | 2 12 . Attach 12 | 5 5 2 Detach 1 | . 1 . Swap 10 | . 7 3 Drop 9 | . 6 3 Fire 71 | 7 45 19 Melee . | . . . Ram . | . . . Kick . | . . . Crush 1 | . 1 . Escape Stasis . | . . . Rewire . | . . . Trap . | . . . Miscellaneous . | . . . Route ------- -11/Scrapyard -10/Materials (discovered 5 exits: [*Mat x3] / [*Min] / [*Sub]) -10/Subcaves History --------- Turn | Location | Event 6 | -11/Scrapyard | Discovered new exit (range 13) 131 | -11/Scrapyard | Entered Materials 314 | -10/Materials | Build established: Mutant 323 | -10/Materials | Discovered new exit (range 14) 672 | -10/Materials | Discovered new exit (range 13) 772 | -10/Materials | Discovered new exit (range 12) 904 | -10/Materials | Discovered new exit (range 12) 1093 | -10/Materials | Discovered new exit (range 4) 1260 | -10/Materials | Entered Subcaves 1261 | -10/Subcaves | Approached by a straggling Scientist 1358 | -10/Subcaves | A swath of the cavern ceiling suddenly collapsed 1509 | -10/Subcaves | Ambushed by swarm of Subdwellers 1542 | -10/Subcaves | Core integrity fell below 50% 1546 | -10/Subcaves | Lost 4 allies 1572 | -10/Subcaves | Core integrity fell below 20% 1578 | -10/Subcaves | Destroyed by B0-DZD(R) with Subdweller Laser Last Messages --------------- 01358_ FJ-WEX(h) system corrupted by crushing effect. A swath of the cavern ceiling suddenly collapses. 01499_ Triggered Shrapnel Trap. 01499_ An expanding cloud of shrapnel blasts out in all directions. 01509_ FJ-WEX(h): "The Subs are coming!" 01514_ J0-XSF(g) destroyed. 01514_ F4-8FC(g) destroyed. 01515_ L3-Q0L(g): "Sorry we're late! Had another grouchy Sub to deal with. Who's the new fellow?" 01515_ L3-Q0L(g) destroyed. 01516_ Dropped Seismic Detector. 01517_ Dropped Scrap Shield. 01517_ Acquired Seismic Detector. 01526_ T7-D61(R) destroyed. 01538_ Ion Engine destroyed. 01560_ IZ-YG7(R) destroyed. 01562_ Lgt. Armor Plating destroyed. 01564_ Lgt. Treads destroyed. 01573_ LG-X2P(R) affixes Scrap Shield Fragment to Scrap Shield. 01577_ Lgt. Assault Rifle destroyed. Map ----- +----------------------------------------------------+ | ?????????????????????????????????????????????????? | | ?????????????????????????????????????????????????? | | ?????????????????????????????????????????????????? | | ?????????????????????????????????????????????????? | | ?????????????????????????????????????????????????? | | ?????????????????????????????????????????????????? | | ?????????????????????????????????????????????????? | | ?????????????????????????????????????????????????? | | ?????????????????????????????????????????????????? | | ?????????????????????????????????????????????????? | | ?????????????????????????????????????????????????? | | ?????????????????????????????????????????????????? | | ???????????????? ####????????????????????????????? | | ???????????????? #????????????????????????????? | | ???????????????? ????????????????????????????? | | ??????????????? ????##???????????????????????? | | ??????????????? ??? #???????????????????????? | | ??????????????" ##? ????????????????????????? | | ??????????????? ## ?????????????????????????? | | ??????????????? ??????????????????????????? | | ???????????????? #???????????????????????????? | | ???????????????? #????????????????????????????? | | ?????????????#### ##????????##??????????????????? | | ????????????## ###???### #??????????????????? | | ???????????## #?## #??????????????????? | | ??????????## #?#@ R##?????????????????? | | ?????????## #####RR R #?????????????????? | | ????????## % "#?## R### # ???????????? | | ???????## %=% ### ### ??????????? | | ######## *%*= &%= ! ##??????????? | | # # ### [" !* R #?????????????? | | #### "" ####?????????????? | | ### """" #????????????????? | | # #### #????????????????? | | #### #??## ### ^ #????????????????? | | #??# # #???# ##??#######????????????????? | | #??###### #???# ###??????????????????????????? | | #????### #??? #????????????????????????????? | | #?#### ## #?# #????????????????????????????? | | #?#"" ## #?## #????????????????????????????? | | #?#" #?? ????????????????????????????? | | ###" ##?? ????????????????????????????? | | ?# ##??? ????????????????????????????? | | ?#" ##????# #????????????????????????????? | | ?#"" "####??????#?????????????????????????????? | | ?##"""""##???????????????????????????????????????? | | ??# ####????????????????????????????????????????? | | ?? ???????????????????????????????????????????? | | ? ???????????????????????????????????????????? | | ? #???????????????????????????????????????????? | +----------------------------------------------------+ Best States ------------- Heat Dissipation 25 Energy Generation 10 Energy Capacity 250 Matter Stores 300 Matter Capacity 300 Sight Range 16 Terrain Scan Range 16 Terrain Scan Density 10 Armor Coverage 150 Evasion (%) 50 Recoil Reduction 2 Item Schematics ----------------- None Robot Schematics ------------------ None Fabricated ------------ Nothing Repaired ---------- Nothing Studied --------- None Alien Tech Used ----------------- None Achievements -------------- None Challenges ------------ None Game ------ Seed LightpackPhysicsImmobilizer Manual? 0 Play Time 00:16:31 Cumulative 2.9 hours Start 2026.02.20 @ 17:02:33 End 2026.02.20 @ 17:18:54 Sessions 1 Manual Loads 0 Difficulty Rogue Special Mode None Game No. 4 Rogue 4 Adventurer 0 Explorer 0 Win Type - Total 0 Types 0/0/0/0/0/0/0/0/0/0 Lore% 2 Gallery% 5 Achievement% 8 Wizard Run 0 Options --------- Layout 0 ASCII 0 Keyboard 0 Movement Mouse Keybinds 0 Fullscreen 1 Font 24/Smallcaps Map View 38x25 Zoom Use 99% Tactical HUD 1 Map Filters NONE Filters NONE Steam 1 RUN: 39466524-1972-4f59-a6ef-e88760a24d50